[Event "Sabadell Open 2018"]
[Site "Sabadell"]
[Date "2018.09.06"]
[Round "6"]
[White "Cano Sevilla, Ivan"]
[Black "Prats Rodriguez, Juan Bosco"]
[Result "1-0"]
[ECO "A41"]
[WhiteElo "1961"]
[BlackElo "1997"]
[Annotator "NA"]
[PlyCount "75"]
[EventDate "2018.09.01"]
[EventType "swiss"]
[EventCountry "ESP"]
[SourceTitle "playchess.com"]
[Source "ChessBase"]
[SourceQuality "1"]
[TimeControl "5400+30"]

1. d4 {[%emt 0:03:27]} d6 {[%emt 0:00:00]} 2. Bf4 {[%emt 0:00:42]} Nf6 {[%emt 0:00:00]} 3. Nc3 {[%emt 0:00:00]} g6 {[%emt 0:01:33]} 4. e4 Bg7 {[%emt 0:01:49]} 5. Qd2 {[%emt 0:00:28]} a6 {[%emt 0:00:44]} 6. f3 {[%emt 0:02:40]} h6 {[%emt 0:08:27]} 7. a4 {[%emt 0:03:10]} Nc6 {[%emt 0:03:04]} 8. Bc4 {[%emt 0:02:00]} g5 {[%emt 0:04:56]} 9. Be3 {[%emt 0:07:41]} e5 {[%emt 0:00:17]} 10. Nge2 {[%emt 0:00:19]} Qe7 {[%emt 0:05:00]} 11. Nd5 {[%emt 0:00:06]} Nxd5 {[%emt 0:00:44]} 12. Bxd5 {[%emt 0:00:36]} Nxd4 $14 {[%emt 0:09:49]} 13. Nxd4 {[%emt 0:01:06]} exd4 {[%emt 0:00:05]} 14. Bxd4 {[%emt 0:02:33]} Be5 15. Qc3 {[%emt 0:00:19]} O-O {[%emt 0:06:00]} 16. Bxe5 {[%emt 0:00:37]} dxe5 {[%emt 0:02:22]} 17. O-O c6 {[%emt 0:01:25]} 18. Bb3 {[%emt 0:01:39]} Rd8 {[%emt 0:02:36]} 19. Rad1 Bd7 20. Rd3 {[%emt 0:04:50]} Be8 {[%emt 0:08:49]} 21. Rfd1 {[%emt 0:00:59]} Rxd3 {[%emt 0:03:53]} 22. Qxd3 Kg7 23. Kf2 {[%emt 0:13:46]} Rc8 {[%emt 0:01:03]} 24. Qd6 {[%emt 0:01:24]} Rc7 25. a5 Qxd6 {[%emt 0:04:37]} 26. Rxd6 {[%emt 0:00:34]} Rd7 {[%emt 0:00:17]} 27. Rxd7 {[%emt 0:00:11]} Bxd7 {[%emt 0:00:01]} 28. Ke3 f5 {[%emt 0:04:07]} 29. Kd3 {[%emt 0:07:57]} g4 30. Kc4 gxf3 {[%emt 0:01:24]} 31. gxf3 {[%emt 0:03:59]} fxe4 {[%emt 0:01:28]} 32. fxe4 {[%emt 0:00:00]} Be6+ {[%emt 0:01:12]} 33. Kc5 {[%emt 0:00:22]} Bxb3 {[%emt 0:00:16]} 34. cxb3 {[%emt 0:00:04]} Kf6 {[%emt 0:00:12]} 35. Kd6 c5 {[%emt 0:01:13]} 36. h4 {[%emt 0:03:31]} Kg6 {[%emt 0:00:11]} 37. Kxe5 {[%emt 0:00:04]} Kh5 {[%emt 0:00:05]} 38. Kf4 1-0

[Event "Sabadell Open 2018"]
[Site "Sabadell"]
[Date "2018.09.06"]
[Round "6"]
[White "Romero Funieles, Rafael"]
[Black "Serentill Tost, Eduard"]
[Result "0-1"]
[ECO "C00"]
[WhiteElo "1628"]
[BlackElo "1613"]
[Annotator "NA RC"]
[PlyCount "142"]
[EventDate "2018.09.01"]
[EventType "swiss"]
[EventCountry "ESP"]
[SourceTitle "playchess.com"]
[Source "ChessBase"]
[SourceQuality "1"]
[TimeControl "5400+30"]

1. e4 {[%emt 0:00:00]} e6 {[%emt 0:00:00]} 2. Nf3 {[%emt 0:00:17]} d5 3. exd5 {[%emt 0:00:41]} exd5 {[%emt 0:00:00]} 4. Be2 {[%emt 0:00:11]} Bd6 {[%emt 0:00:56]} 5. h3 {[%emt 0:00:17]} Nf6 {[%emt 0:00:22]} 6. d4 {[%emt 0:00:34]} O-O {[%emt 0:00:39]} 7. O-O {[%emt 0:01:19]} c6 {[%emt 0:01:16]} 8. Bd3 {[%emt 0:02:59]} Nbd7 {[%emt 0:00:37]} 9. c3 {[%emt 0:01:09]} Qc7 {[%emt 0:02:01]} 10. Be3 {[%emt 0:01:02]} b6 {[%emt 0:04:35]} 11. Nbd2 {[%emt 0:01:05]} a5 12. c4 dxc4 {[%emt 0:13:32]} 13. Nxc4 {[%emt 0:04:20]} Ba6 {[%emt 0:02:04]} 14. b3 {[%emt 0:01:59]} Nd5 {[%emt 0:02:48]} 15. Rc1 {[%emt 0:10:06]} Rfe8 {[%emt 0:07:14]} 16. Nxd6 {[%emt 0:03:34]} Qxd6 {[%emt 0:01:34]} 17. Bxa6 {[%emt 0:02:26]} Rxa6 {[%emt 0:01:51]} 18. Qd3 {[%emt 0:01:03]} Nb4 {[%emt 0:01:20]} 19. Qb1 {[%emt 0:02:05]} Raa8 {[%emt 0:01:52]} 20. a3 {[%emt 0:01:26]} Nd5 {[%emt 0:00:38]} 21. Ng5 {[%emt 0:03:34]} N7f6 {[%emt 0:07:52]} 22. Qd3 {[%emt 0:01:15]} h6 {[%emt 0:05:14]} 23. Nf3 {[%emt 0:00:33]} Nd7 {[%emt 0:03:52]} 24. Nd2 {[%emt 0:01:17]} b5 {[%emt 0:02:17]} 25. Ne4 Qg6 {[%emt 0:00:55]} 26. Nc5 {[%emt 0:07:05]} Qxd3 {[%emt 0:02:33]} 27. Nxd3 {[%emt 0:00:11]} Nxe3 {[%emt 0:00:07]} 28. fxe3 {[%emt 0:00:16]} Rxe3 {[%emt 0:00:30]} 29. Nf4 {[%emt 0:03:30]} Rxb3 {[%emt 0:03:08]} 30. Rxc6 {[%emt 0:00:07]} Rxa3 {[%emt 0:01:21]} 31. Rc7 {[%emt 0:00:33]} Nf6 {[%emt 0:01:37]} 32. Rc5 b4 {[%emt 0:01:13]} 33. Re1 {[%emt 0:03:28]} b3 {[%emt 0:00:40]} 34. Nd3 {[%emt 0:00:40]} Rd8 35. Rc4 a4 {[%emt 0:01:57]} 36. Nb2 {[%emt 0:02:47]} Ra8 {[%emt 0:00:18]} 37. Kh2 {[%emt 0:04:56]} Ra2 {[%emt 0:02:56]} 38. Rb1 Rxb2 {[%emt 0:03:31]} 39. Rxb2 {[%emt 0:02:55]} a3 40. Rxb3 {[%emt 0:02:21]} a2 {[%emt 0:00:13]} 41. Rc1 {[%emt 0:01:11]} a1=Q {[%emt 0:00:12]} 42. Rxa1 {[%emt 0:00:50]} Rxa1 {[%emt 0:00:05]} 43. Rb8+ {[%emt 0:00:26]} Kh7 {[%emt 0:00:01]} 44. Rd8 {[%emt 0:01:20]} Rd1 {[%emt 0:00:13]} 45. Rd6 {[%emt 0:01:02]} Kg6 {[%emt 0:00:36]} 46. Rd8 {[%emt 0:00:09]} Kf5 {[%emt 0:00:55]} 47. Rd6 {[%emt 0:01:18]} Ke4 {[%emt 0:00:49]} 48. Ra6 {[%emt 0:01:06]} Rxd4 {[%emt 0:00:31]} 49. Ra7 {[%emt 0:00:23]} Rd7 {[%emt 0:00:12]} 50. Ra3 {[%emt 0:00:10]} Nd5 {[%emt 0:01:14]} 51. Rg3 {[%emt 0:01:02]} g6 {[%emt 0:00:42]} 52. Rg4+ {[%emt 0:00:19]} Kf5 {[%emt 0:00:58]} 53. Rh4 {[%emt 0:00:40]} h5 {[%emt 0:00:13]} 54. Ra4 {[%emt 0:00:28]} g5 {[%emt 0:01:53]} 55. Kg3 {[%emt 0:01:44]} Re7 {[%emt 0:00:30]} 56. Ra5 {[%emt 0:00:51]} Re3+ {[%emt 0:00:26]} 57. Kf2 Rd3 {[%emt 0:01:39]} 58. Rb5 {[%emt 0:01:09]} Ke4 {[%emt 0:01:08]} 59. Rb7 {[%emt 0:00:56]} f6 60. Rb8 Rd2+ {[%emt 0:02:00]} 61. Kg1 {[%emt 0:04:19]} Nf4 {[%emt 0:00:48]} 62. Rb4+ {[%emt 0:02:08]} Kf5 63. g4+ {[%emt 0:01:16]} hxg4 {[%emt 0:01:19]} 64. Rb5+ {[%emt 0:00:28]} Rd5 {[%emt 0:00:37]} 65. hxg4+ {[%emt 0:00:25]} Kxg4 {[%emt 0:00:04]} 66. Rb6 {[%emt 0:00:33]} Kg3 {[%emt 0:00:33]} 67. Rb3+ {[%emt 0:00:29]} Rd3 {[%emt 0:00:08]} 68. Rb1 {[%emt 0:00:27]} f5 {[%emt 0:00:52]} 69. Kh1 {[%emt 0:00:38]} Nh3 {[%emt 0:00:39]} 70. Rf1 Nf2+ {[%emt 0:02:10]} 71. Kg1 {[%emt 0:02:56]} Rd1 0-1

[Event "Sabadell Open 2018"]
[Site "Sabadell"]
[Date "2018.09.07"]
[Round "7"]
[White "Giron, Jorge Ernesto"]
[Black "Lorenzo De La Riva, Lazaro"]
[Result "1/2-1/2"]
[ECO "C70"]
[WhiteElo "2303"]
[BlackElo "2399"]
[Annotator "NA"]
[PlyCount "98"]
[EventDate "2018.09.01"]
[EventType "swiss"]
[EventCountry "ESP"]
[SourceTitle "playchess.com"]
[Source "ChessBase"]
[SourceQuality "1"]
[TimeControl "5400+30"]

1. e4 e5 {[%emt 0:02:27]} 2. Nf3 {[%emt 0:00:12]} Nc6 {[%emt 0:00:04]} 3. Bb5 {[%emt 0:00:06]} a6 {[%emt 0:00:03]} 4. Ba4 {[%emt 0:00:03]} g6 {[%emt 0:01:24] LiveBook: 352 Games} 5. O-O {[%emt 0:01:22]} Bg7 6. c3 {[%emt 0:00:37]} d6 {[%emt 0:00:16]} 7. h3 Nf6 {[%emt 0:01:09]} 8. Re1 {[%emt 0:00:44] C60: Ruy Lopez: Unusual Black 3rd moves and 3...g6} O-O {[%emt 0:01:33]} 9. Bxc6 {[%emt 0:10:04]} bxc6 {[%emt 0:03:10]} 10. d4 {[%emt 0:00:05]} Nd7 {[%emt 0:11:34]} 11. Bg5 $146 {[%emt 0:04:36]} ({Predecessor:} 11. dxe5 Nxe5 12. Nxe5 Bxe5 13. Nd2 Bg7 14. Nf3 Re8 15. Bg5 f6 {0-1 (60) Czarnota,D (2210)-Malaniuk,V (2525) Krakow 2003}) 11... Qe8 {[%emt 0:05:11]} 12. Nbd2 {[%emt 0:06:03]} h6 {[%emt 0:00:06]} 13. Bh4 {[%emt 0:00:06]} a5 {[%emt 0:04:01]} 14. Nc4 {[%emt 0:03:56]} Nb6 {[%emt 0:12:28]} 15. Nxb6 {[%emt 0:01:21]} cxb6 {[%emt 0:00:27]} 16. dxe5 {[%emt 0:00:03]} dxe5 {[%emt 0:00:20]} 17. Qd6 {[%emt 0:00:29]} f6 {[%emt 0:00:19]} 18. Red1 {[%emt 0:02:28]} Be6 {[%emt 0:07:01]} 19. Qc7 {[%emt 0:00:31]} g5 {[%emt 0:14:46]} 20. Bg3 {[%emt 0:00:41]} Qc8 {[%emt 0:04:21]} 21. Qxb6 {[%emt 0:01:25]} Rb8 {[%emt 0:01:01]} 22. Qxa5 {[%emt 0:02:35]} Rxb2 23. a4 {[%emt 0:12:20]} Re8 {[%emt 0:05:43]} 24. Rab1 {[%emt 0:09:04]} Rxb1 {[%emt 0:01:45]} 25. Rxb1 {[%emt 0:00:04]} Bf8 {[%emt 0:02:42]} 26. Qb6 {[%emt 0:10:59]} Qa8 {[%emt 0:04:19]} 27. a5 {[%emt 0:01:52]} Bd6 {[%emt 0:00:02]} 28. Ra1 {[%emt 0:00:16]} Rb8 {[%emt 0:00:09]} 29. Qe3 {[%emt 0:00:03]} Qa6 {[%emt 0:00:13]} 30. h4 {[%emt 0:00:33]} Be7 {[%emt 0:06:18]} 31. hxg5 {[%emt 0:00:36]} hxg5 {[%emt 0:00:02]} 32. Nh2 {[%emt 0:00:57]} Rb5 {[%emt 0:00:24]} 33. Qd3 $11 {[%emt 0:05:02]} c5 {[%emt 0:01:39]} 34. Nf1 {[%emt 0:00:17]} c4 {[%emt 0:00:01]} 35. Qd2 {[%emt 0:01:04]} Rxa5 {[%emt 0:00:04]} 36. Rxa5 {[%emt 0:00:03]} Qxa5 {[%emt 0:00:08]} 37. Ne3 {[%emt 0:00:17]} Qa1+ {[%emt 0:01:57]} 38. Kh2 Qb1 {[%emt 0:03:36]} 39. f3 {[%emt 0:04:04]} Qd3 {[%emt 0:01:16]} 40. Qxd3 {[%emt 0:00:15]} cxd3 {[%emt 0:00:02]} 41. Be1 {[%emt 0:00:06]} Bc5 {[%emt 0:02:28]} 42. Bd2 {[%emt 0:00:04]} Bxe3 {[%emt 0:01:11]} 43. Bxe3 {[%emt 0:00:05]} Kf7 {[%emt 0:00:11]} 44. g4 {[%emt 0:03:02]} Bb3 {[%emt 0:00:15]} 45. Kg3 {[%emt 0:00:13]} Ke6 {[%emt 0:00:03]} 46. Kf2 {[%emt 0:00:37]} Bd1 {[%emt 0:00:36]} 47. Bc1 {[%emt 0:00:23]} Kd7 {[%emt 0:02:15]} 48. Ke3 {[%emt 0:00:05]} Kc6 {[%emt 0:00:04]} 49. Ba3 {[%emt 0:02:58]} Kd7 {[%emt 0:00:15]} 1/2-1/2

[Event "Sabadell Open 2018"]
[Site "Sabadell"]
[Date "2018.09.07"]
[Round "7"]
[White "Jimenez Ruano, Adrian"]
[Black "Valenzuela Gomez, Fernando"]
[Result "1/2-1/2"]
[ECO "E48"]
[WhiteElo "2244"]
[BlackElo "2384"]
[Annotator "NA"]
[PlyCount "65"]
[EventDate "2018.09.01"]
[EventType "swiss"]
[EventCountry "ESP"]
[SourceTitle "playchess.com"]
[Source "ChessBase"]
[SourceQuality "1"]
[TimeControl "5400+30"]

1. d4 {[%emt 0:00:00]} Nf6 {[%emt 0:02:03]} 2. c4 {[%emt 0:00:00]} e6 {[%emt 0:00:08]} 3. Nc3 {[%emt 0:00:00]} Bb4 {[%emt 0:00:13]} 4. e3 {[%emt 0:00:00]} O-O {[%emt 0:00:12]} 5. Bd3 {[%emt 0:00:00]} d5 {[%emt 0:00:44]} 6. cxd5 {[%emt 0:00:00]} exd5 {[%emt 0:00:06]} 7. Nge2 {[%emt 0:00:13]} Re8 {[%emt 0:00:25]} 8. Bd2 {[%emt 0:00:05] E48: Nimzo-Indian: Rubinstein: 5 Bd3 d5 including 6 Ne2, but excluding 6 a3} c5 {[%emt 0:01:30]} (8... Bd6 9. O-O a6 10. Rc1 Nbd7 11. Nf4 c6 12. f3 Nf8 13. Kh1 Ng6 14. Nce2 Qb6 15. b3 Bd7 {½-½ (62) Fressinet,L (2645)-Gharamian,T (2614) Nimes 2018}) 9. O-O {[%emt 0:00:10]} c4 {[%emt 0:01:50]} 10. Bc2 {[%emt 0:00:19]} a6 $146 {[%emt 0:09:37]} ({Predecessor:} 10... Nc6 11. Nf4 Bxc3 12. Bxc3 b5 13. a3 a5 {1-0 (37) Steinacker,A (1685)-Eichler,W (1430) Muehlhausen 2007}) 11. f3 {[%emt 0:05:11]} Nc6 {[%emt 0:10:36]} 12. Qe1 {[%emt 0:02:01]} Bd6 {[%emt 0:08:50]} 13. Rd1 {[%emt 0:07:47]} Nb4 {[%emt 0:07:24]} 14. Bb1 {[%emt 0:00:27]} Nd3 {[%emt 0:02:40]} 15. Bxd3 {[%emt 0:00:29]} cxd3 {[%emt 0:00:02]} 16. Nc1 {[%emt 0:00:56]} Bf5 {[%emt 0:00:35]} 17. Qh4 {[%emt 0:22:12]} Bg6 {[%emt 0:04:22]} 18. g4 {[%emt 0:04:30]} b5 {[%emt 0:11:03]} 19. a3 $15 b4 {[%emt 0:04:50]} 20. axb4 {[%emt 0:06:00]} Bxb4 {[%emt 0:00:25]} 21. Qf2 {[%emt 0:00:33]} h5 {[%emt 0:06:45]} 22. h3 {[%emt 0:00:46]} Nh7 23. N3a2 {[%emt 0:10:02]} Bd6 {[%emt 0:05:51]} 24. Kg2 {[%emt 0:03:19]} Rb8 {[%emt 0:04:20]} 25. Bc3 {[%emt 0:03:47]} hxg4 {[%emt 0:06:13]} 26. hxg4 {[%emt 0:00:12]} Qg5 {[%emt 0:01:52]} 27. Nxd3 {[%emt 0:03:47]} Be4 {[%emt 0:12:11]} 28. Ne5 {[%emt 0:03:00]} f6 {[%emt 0:03:34]} 29. fxe4 {[%emt 0:04:49]} fxe5 {[%emt 0:00:06]} 30. Qf5 {[%emt 0:02:45]} Qxe3 {[%emt 0:01:38]} 31. Rde1 {[%emt 0:00:27]} Qg5 {[%emt 0:00:58]} 32. exd5 {[%emt 0:02:33]} Qxf5 {[%emt 0:00:12]} 33. Rxf5 {[%emt 0:06:49]} 1/2-1/2

[Event "Sabadell Open 2018"]
[Site "Sabadell"]
[Date "2018.09.07"]
[Round "7"]
[White "Juan Bartroli, Marc"]
[Black "Cano Sevilla, Ivan"]
[Result "1-0"]
[ECO "D31"]
[WhiteElo "2067"]
[BlackElo "1961"]
[Annotator "NA"]
[PlyCount "67"]
[EventDate "2018.09.01"]
[EventType "swiss"]
[EventCountry "ESP"]
[SourceTitle "playchess.com"]
[Source "ChessBase"]
[SourceQuality "1"]
[TimeControl "5400+30"]

1. d4 d5 {[%emt 0:14:11]} 2. c4 {[%emt 0:00:00]} e6 {[%emt 0:00:04]} 3. Nc3 {[%emt 0:00:00]} f5 {[%emt 0:00:03]} 4. Bf4 {[%emt 0:00:12]} c6 {[%emt 0:00:20]} 5. e3 {[%emt 0:00:56]} Bd6 {[%emt 0:00:03]} 6. Bxd6 {[%emt 0:00:38]} Qxd6 {[%emt 0:00:05]} 7. Nf3 {[%emt 0:00:25]} Nf6 {[%emt 0:00:17]} 8. Bd3 {[%emt 0:00:31]} O-O {[%emt 0:00:17]} 9. O-O {[%emt 0:00:40]} Ne4 {[%emt 0:00:06]} 10. Ne5 {[%emt 0:11:58]} Nd7 {[%emt 0:00:51]} 11. f4 {LiveBook: 6 Partien} Ndf6 {[%emt 0:04:47]} 12. c5 $14 {[%emt 0:16:03]} Qe7 {[%emt 0:00:54]} 13. Nxe4 {[%emt 0:06:18]} fxe4 {[%emt 0:03:35]} 14. Be2 {[%emt 0:00:18]} Bd7 {[%emt 0:00:34]} 15. b4 {[%emt 0:03:00]} a6 {[%emt 0:00:05]} 16. a4 Be8 {[%emt 0:00:55]} 17. Qb3 {[%emt 0:06:10]} Nd7 {[%emt 0:06:29]} 18. Nxd7 {[%emt 0:01:49]} Bxd7 {[%emt 0:02:40]} 19. b5 {[%emt 0:03:07]} axb5 {[%emt 0:01:47]} 20. axb5 {[%emt 0:00:10]} Rxa1 {[%emt 0:01:30]} 21. Rxa1 {[%emt 0:00:07]} g5 22. Ra7 {[%emt 0:10:33]} gxf4 {[%emt 0:09:57]} 23. exf4 {[%emt 0:01:56]} Qf6 {[%emt 0:02:13]} 24. Qe3 cxb5 {[%emt 0:04:35]} 25. Rxb7 {[%emt 0:03:25]} Be8 {[%emt 0:01:20]} 26. Bxb5 {[%emt 0:09:01]} Bxb5 {[%emt 0:00:21]} 27. Rxb5 {[%emt 0:00:01]} Ra8 {[%emt 0:08:04]} 28. Rb1 {[%emt 0:06:58]} Ra4 {[%emt 0:02:26]} 29. Rc1 {[%emt 0:03:13]} Rxd4 {[%emt 0:09:07]} 30. c6 {[%emt 0:02:05]} Rd3 {[%emt 0:04:14]} 31. Qc5 {[%emt 0:11:32]} Qxf4 {[%emt 0:07:28]} 32. c7 {[%emt 0:00:14]} e3 {[%emt 0:00:18]} 33. c8=Q+ {[%emt 0:00:08]} Kg7 {[%emt 0:00:12]} 34. Qe7+ {[%emt 0:00:27]} 1-0

[Event "Sabadell Open 2018"]
[Site "Sabadell"]
[Date "2018.09.07"]
[Round "7"]
[White "Serentill Tost, Eduard"]
[Black "Carbajal Gutierrez, Sergi Rober"]
[Result "1/2-1/2"]
[ECO "B28"]
[WhiteElo "1613"]
[BlackElo "1529"]
[Annotator "NA"]
[PlyCount "52"]
[EventDate "2018.09.01"]
[EventType "swiss"]
[EventCountry "ESP"]
[SourceTitle "playchess.com"]
[Source "ChessBase"]
[SourceQuality "1"]
[TimeControl "5400+30"]

1. e4 c5 {[%emt 0:30:05]} 2. Nf3 {[%emt 0:00:00]} a6 {[%emt 0:00:14]} 3. d4 {[%emt 0:00:22]} cxd4 {[%emt 0:00:17]} 4. Nxd4 {[%emt 0:00:07]} e5 {[%emt 0:00:04]} 5. Nf3 {[%emt 0:01:03]} Nc6 {[%emt 0:00:10]} 6. a3 {[%emt 0:02:47]} h6 {[%emt 0:03:43]} 7. Bc4 {[%emt 0:01:29]} Nf6 {[%emt 0:00:47]} 8. Nc3 {[%emt 0:03:04]} Bc5 {[%emt 0:01:31]} 9. b4 {[%emt 0:04:23]} Bd4 10. Nxd4 {[%emt 0:03:59]} exd4 {[%emt 0:03:56]} 11. Ne2 {[%emt 0:02:05]} Nxe4 12. Bb2 {[%emt 0:05:41]} d5 {[%emt 0:09:36]} 13. Ba2 O-O {[%emt 0:21:23]} 14. O-O {[%emt 0:02:35]} Be6 {[%emt 0:07:33]} 15. Nxd4 {[%emt 0:01:24]} Rc8 {[%emt 0:01:56]} 16. h3 {[%emt 0:04:00]} Nxd4 17. Qxd4 {[%emt 0:01:37]} f6 {[%emt 0:09:13]} 18. Bb3 Kh8 {[%emt 0:04:32]} 19. Rad1 {[%emt 0:04:14]} Qc7 {[%emt 0:02:30]} 20. Rfe1 {[%emt 0:06:15]} Rfd8 21. c4 {[%emt 0:04:09]} Ng5 {[%emt 0:01:26]} 22. cxd5 {[%emt 0:00:58]} Bg8 {[%emt 0:00:43]} 23. d6 {[%emt 0:03:24]} Bxb3 {[%emt 0:00:10]} 24. Re8+ {[%emt 0:00:43]} Rxe8 {[%emt 0:00:54]} 25. dxc7 {[%emt 0:01:56]} Bxd1 {[%emt 0:00:02]} 26. Qxd1 {[%emt 0:01:05]} Rxc7 {[%emt 0:00:03]} 1/2-1/2

[Event "Sabadell Open 2018"]
[Site "Sabadell"]
[Date "2018.09.08"]
[Round "8"]
[White "Lorenzo De La Riva, Lazaro"]
[Black "Fernandez Diaz, Cristian"]
[Result "1-0"]
[ECO "B38"]
[WhiteElo "2399"]
[BlackElo "2221"]
[Annotator "NA"]
[PlyCount "37"]
[EventDate "2018.09.01"]
[EventType "swiss"]
[EventCountry "ESP"]
[SourceTitle "playchess.com"]
[Source "ChessBase"]
[SourceQuality "1"]
[TimeControl "5400+30"]

1. e4 {[%emt 0:03:08]} c5 {[%emt 0:00:00]} 2. Nf3 {[%emt 0:00:12]} Nc6 {[%emt 0:00:01]} 3. d4 {[%emt 0:00:20]} cxd4 {[%emt 0:00:10]} 4. Nxd4 {[%emt 0:00:06]} g6 {[%emt 0:00:14]} 5. c4 {[%emt 0:00:39]} Bg7 {[%emt 0:00:05]} 6. Be3 {[%emt 0:00:10]} Nf6 {[%emt 0:00:06]} 7. Nc3 {[%emt 0:00:04]} O-O {[%emt 0:00:08]} 8. Be2 {[%emt 0:00:03]} d6 9. O-O {[%emt 0:00:30]} Nxd4 {[%emt 0:00:12]} 10. Bxd4 {[%emt 0:00:05]} Bd7 {[%emt 0:00:05]} 11. h3 {[%emt 0:00:54]} Bc6 {[%emt 0:03:33]} 12. Qc2 {[%emt 0:01:38]} a5 {[%emt 0:03:54]} 13. Rad1 {[%emt 0:09:14]} a4 {[%emt 0:11:05]} 14. c5 {[%emt 0:03:47]} Qa5 {[%emt 0:01:00]} 15. cxd6 {[%emt 0:01:55]} exd6 {[%emt 0:00:14]} 16. Bf3 {[%emt 0:07:34]} Rfe8 {[%emt 0:05:26]} 17. a3 {[%emt 0:02:15]} Rac8 {[%emt 0:04:43]} 18. Qd2 {[%emt 0:05:38]} Rcd8 $18 {[%emt 0:21:52]} (18... h5 $14) 19. Bxf6 {[%emt 0:06:33]} 1-0

[Event "Sabadell Open 2018"]
[Site "Sabadell"]
[Date "2018.09.08"]
[Round "8"]
[White "Juan Bartroli, Marc"]
[Black "Prats Rodriguez, Juan Bosco"]
[Result "0-1"]
[ECO "A25"]
[WhiteElo "2067"]
[BlackElo "1997"]
[Annotator "NA RC"]
[PlyCount "82"]
[EventDate "2018.09.01"]
[EventType "swiss"]
[EventCountry "ESP"]
[SourceTitle "playchess.com"]
[Source "ChessBase"]
[SourceQuality "1"]
[TimeControl "5400+30"]

1. c4 {[%emt 0:01:20]} e5 {[%emt 0:00:00]} 2. g3 {[%emt 0:00:19]} Nc6 {[%emt 0:00:00]} 3. Bg2 {[%emt 0:00:14]} d6 {[%emt 0:01:09]} 4. Nc3 {[%emt 0:00:10]} Be6 {[%emt 0:00:22]} 5. d3 Qd7 {[%emt 0:00:28]} 6. Rb1 {[%emt 0:00:59]} g6 {[%emt 0:00:27]} 7. b4 {[%emt 0:00:31]} Bg7 {[%emt 0:00:19]} 8. b5 {[%emt 0:00:38]} Nd8 {[%emt 0:00:06]} 9. Nd5 c6 {[%emt 0:01:15]} 10. bxc6 {[%emt 0:00:40]} bxc6 {[%emt 0:00:05]} 11. Nc3 {[%emt 0:02:35]} Ne7 12. e3 {[%emt 0:00:55]} O-O {[%emt 0:05:04]} 13. Nge2 Bh3 14. O-O {[%emt 0:02:50]} Bxg2 {[%emt 0:03:47]} 15. Kxg2 {[%emt 0:00:10]} Ne6 16. Ba3 {[%emt 0:19:49]} f5 {[%emt 0:04:19]} 17. f4 {[%emt 0:01:15]} exf4 {[%emt 0:14:51]} 18. exf4 {[%emt 0:10:25]} c5 {[%emt 0:06:57]} 19. Qb3 {[%emt 0:01:12]} Qc6+ {[%emt 0:06:04]} 20. Nd5 {[%emt 0:19:50]} Nc7 {[%emt 0:00:38]} 21. Qb7 Ncxd5 22. Qxc6 {[%emt 0:01:47]} Nxc6 {[%emt 0:00:56]} 23. cxd5 {[%emt 0:00:11]} Ne7 {[%emt 0:00:12]} 24. Rb7 {[%emt 0:05:12]} Nxd5 {[%emt 0:00:33]} 25. Rfb1 {[%emt 0:01:59]} Rfe8 {[%emt 0:01:06]} 26. Kf2 {[%emt 0:02:29]} Re6 27. Rb8+ $17 {[%emt 0:05:59]} Rxb8 {[%emt 0:12:30]} 28. Rxb8+ {[%emt 0:00:01]} Kf7 29. Ra8 {[%emt 0:03:13]} Re7 {[%emt 0:01:07]} 30. Rd8 Ke6 {[%emt 0:08:43]} 31. d4 {[%emt 0:00:52]} Nf6 {[%emt 0:03:06]} 32. Kf3 Ne4 33. dxc5 {[%emt 0:07:38]} dxc5 {[%emt 0:02:00]} 34. Rc8 {[%emt 0:01:17]} Kd5 {[%emt 0:02:14]} 35. Nc1 {[%emt 0:02:12]} Nd2+ {[%emt 0:02:47]} 36. Kg2 {[%emt 0:11:13]} Bd4 37. Rd8+ {[%emt 0:01:42]} Kc4 {[%emt 0:05:17]} 38. Bb2 Bxb2 39. Rxd2 {[%emt 0:00:38]} Kc3 {[%emt 0:05:00]} 40. Re2 {[%emt 0:01:38]} Rxe2+ {[%emt 0:00:15]} 41. Nxe2+ {[%emt 0:00:01]} Kd2 {[%emt 0:00:20]} 0-1

[Event "Sabadell Open 2018"]
[Site "Sabadell"]
[Date "2018.09.08"]
[Round "8"]
[White "Fernandez Pintado, Xavier"]
[Black "Serentill Tost, Eduard"]
[Result "0-1"]
[ECO "E91"]
[WhiteElo "1602"]
[BlackElo "1613"]
[Annotator "NA"]
[PlyCount "66"]
[EventDate "2018.09.01"]
[EventType "swiss"]
[EventCountry "ESP"]
[SourceTitle "playchess.com"]
[Source "ChessBase"]
[SourceQuality "1"]
[TimeControl "5400+30"]

1. d4 {[%emt 0:00:00]} Nf6 {[%emt 0:00:00]} 2. c4 {[%emt 0:00:00]} g6 {[%emt 0:00:00]} 3. Nc3 {[%emt 0:00:00]} Bg7 {[%emt 0:00:05]} 4. e4 {[%emt 0:00:11]} d6 {[%emt 0:00:09]} 5. Nf3 {[%emt 0:01:05]} O-O {[%emt 0:00:27]} 6. Be2 Nbd7 {[%emt 0:00:35]} 7. O-O {[%emt 0:01:12]} e5 8. d5 {[%emt 0:00:16]} Nc5 {[%emt 0:01:16]} 9. Qc2 a5 {[%emt 0:01:37]} 10. Be3 {[%emt 0:00:47]} Ne8 {[%emt 0:05:24]} 11. a3 {[%emt 0:02:26]} f5 {[%emt 0:00:20]} 12. b4 Nxe4 {[%emt 0:06:02]} 13. Nxe4 {[%emt 0:01:24]} fxe4 {[%emt 0:00:17]} 14. Nd2 {[%emt 0:02:39]} Nf6 {[%emt 0:03:04]} 15. h3 {[%emt 0:02:14]} b6 16. Rfd1 {[%emt 0:04:15]} Qe8 {[%emt 0:06:40]} 17. Nf1 {[%emt 0:00:57]} h6 {[%emt 0:02:49]} 18. Qd2 {[%emt 0:00:19]} Kh7 {[%emt 0:00:21]} 19. b5 {[%emt 0:01:51]} g5 {[%emt 0:05:15]} 20. a4 {[%emt 0:01:16]} Nh5 {[%emt 0:01:32]} 21. Nh2 {[%emt 0:00:42]} Nf4 {[%emt 0:03:14]} 22. Ra3 Qg6 {[%emt 0:05:25]} 23. Nf1 {[%emt 0:03:04]} h5 {[%emt 0:04:17]} 24. f3 {[%emt 0:08:22]} Nxe2+ 25. Qxe2 {[%emt 0:02:35]} exf3 {[%emt 0:01:11]} 26. Qf2 g4 {[%emt 0:06:38]} 27. hxg4 {[%emt 0:09:14]} Bxg4 28. g3 {[%emt 0:05:05]} Rf7 {[%emt 0:06:21]} 29. Nh2 e4 {[%emt 0:04:42]} 30. Nxg4 {[%emt 0:05:31]} Qxg4 31. Rd2 {[%emt 0:01:50]} Be5 {[%emt 0:03:07]} 32. Kh2 {[%emt 0:03:48]} h4 {[%emt 0:00:49]} 33. Bf4 {[%emt 0:00:11]} Rxf4 {[%emt 0:06:45]} 0-1

[Event "Sabadell Open 2018"]
[Site "Sabadell"]
[Date "2018.09.10"]
[Round "9"]
[White "Nadal Fajardo, Ricard"]
[Black "Prats Rodriguez, Juan Bosco"]
[Result "1/2-1/2"]
[ECO "D11"]
[WhiteElo "1920"]
[BlackElo "1997"]
[Annotator "NA"]
[PlyCount "27"]
[EventDate "2018.09.01"]
[EventType "swiss"]
[EventCountry "ESP"]
[SourceTitle "playchess.com"]
[Source "ChessBase"]
[SourceQuality "1"]
[TimeControl "5400+30"]

1. d4 {[%emt 0:00:00]} d5 {[%emt 0:00:00]} 2. Nf3 {[%emt 0:00:00]} Nf6 {[%emt 0:00:00]} 3. g3 {[%emt 0:00:00]} Bf5 {[%emt 0:00:38]} 4. Bg2 {[%emt 0:00:18]} e6 {[%emt 0:00:00]} 5. O-O {[%emt 0:00:10]} Be7 {[%emt 0:00:16]} 6. c4 {[%emt 0:00:19]} c6 {[%emt 0:00:09]} 7. Nc3 {[%emt 0:00:55]} O-O {[%emt 0:00:51]} 8. b3 {[%emt 0:00:34]} Nbd7 {[%emt 0:02:19]} 9. Bb2 {[%emt 0:01:19]} Ne4 {[%emt 0:03:38]} 10. Nd2 {[%emt 0:03:45]} Nxc3 {[%emt 0:01:21]} 11. Bxc3 {[%emt 0:00:06]} Nf6 {[%emt 0:00:36]} 12. Qc1 {[%emt 0:05:49]} Rb8 {[%emt 0:11:55]} 13. a4 {[%emt 0:06:10]} a5 {[%emt 0:11:58]} 14. Qb2 {[%emt 0:13:02]} 1/2-1/2